[Event "94th FRA-ch Open D 2019"]
[Site "Chartres"]
[Date "2019.08.21"]
[Round "5.3"]
[White "Decurninge, Brice"]
[Black "Soulet, Julia"]
[Result "1-0"]
[ECO "B23"]
[WhiteElo "1462"]
[BlackElo "1537"]
[Annotator "NA"]
[PlyCount "107"]
[EventDate "2019.08.17"]
[EventType "swiss"]
[EventCountry "FRA"]
[SourceTitle "playchess.com"]
[Source "ChessBase"]
[SourceQuality "1"]
[TimeControl "40/5400+30:1800+30"]

1. e4 {[%emt 0:00:00]} c5 {[%emt 0:00:00]} 2. Nc3 {[%emt 0:00:00]} a6 {[%emt 0:00:00]} 3. g3 {[%emt 0:03:24]} b5 {[%emt 0:00:33]} 4. Bg2 {[%emt 0:00:53]} Bb7 {[%emt 0:00:28]} 5. f4 {[%emt 0:05:30]} Nf6 {[%emt 0:01:41]} 6. d3 {[%emt 0:00:26]} e6 {[%emt 0:00:57]} 7. Nf3 {[%emt 0:02:15]} b4 {[%emt 0:01:16]} 8. Ne2 {[%emt 0:01:43]} Be7 {[%emt 0:01:13]} 9. O-O {[%emt 0:03:46]} O-O {[%emt 0:00:48]} 10. h3 {[%emt 0:06:28]} Qc7 {[%emt 0:06:16]} 11. Be3 {[%emt 0:06:21]} Nc6 {[%emt 0:01:10]} 12. g4 {[%emt 0:02:40]} d5 {[%emt 0:07:08]} 13. e5 {[%emt 0:00:40]} Nd7 {[%emt 0:00:10]} 14. Qe1 {[%emt 0:08:00]} f6 {[%emt 0:04:28]} 15. exf6 {[%emt 0:00:50]} Bxf6 {[%emt 0:04:08]} 16. g5 {[%emt 0:12:21]} Bxb2 {[%emt 0:02:45]} 17. Rb1 {[%emt 0:00:08]} Bc3 {[%emt 0:00:26]} 18. Nxc3 {[%emt 0:01:29]} bxc3 {[%emt 0:00:46]} 19. Qxc3 {[%emt 0:02:10]} d4 {[%emt 0:01:56]} 20. Bxd4 {[%emt 0:04:17]} cxd4 {[%emt 0:00:37]} 21. Nxd4 {[%emt 0:00:11]} Qd6 {[%emt 0:01:50]} 22. Nxc6 {[%emt 0:06:00]} Nc5 {[%emt 0:03:49]} 23. Ne5 {[%emt 0:03:46]} Bxg2 {[%emt 0:00:27]} 24. Kxg2 {[%emt 0:00:07]} Rac8 {[%emt 0:00:35]} 25. Qa3 {[%emt 0:03:28]} Ne4 {[%emt 0:03:31]} 26. Qxd6 {[%emt 0:00:36]} Rxc2+ {[%emt 0:00:15]} 27. Kf3 {[%emt 0:03:23]} Nxd6 {[%emt 0:00:27]} 28. Rf2 {[%emt 0:01:54]} Rxf2+ {[%emt 0:03:37]} 29. Kxf2 {[%emt 0:00:10]} Rxf4+ {[%emt 0:00:12]} 30. Ke3 {[%emt 0:01:27]} Rf5 {[%emt 0:01:13]} 31. Rb8+ {[%emt 0:00:21]} Rf8 {[%emt 0:00:09]} 32. Nd7 {[%emt 0:02:23]} Rxb8 {[%emt 0:01:24]} 33. Nxb8 {[%emt 0:00:10]} a5 {[%emt 0:00:47]} 34. Kd4 {[%emt 0:01:27]} Nb5+ {[%emt 0:11:17]} 35. Kc4 {[%emt 0:02:43]} Na3+ {[%emt 0:04:02]} 36. Kb3 {[%emt 0:01:48]} Nb1 {[%emt 0:00:40]} 37. a4 {[%emt 0:04:06]} Nd2+ {[%emt 0:00:38]} 38. Kc3 {[%emt 0:00:39]} Nf3 {[%emt 0:00:56]} 39. Nc6 {[%emt 0:00:45]} Nxg5 {[%emt 0:00:23]} 40. h4 {[%emt 0:02:51]} Nf3 {[%emt 0:02:48]} 41. Nxa5 {[%emt 0:30:23]} Ne5 {[%emt 0:31:42]} 42. Nc4 {[%emt 0:00:00]} Nc6 {[%emt 0:00:00]} 43. a5 {[%emt 0:00:00]} h5 {[%emt 0:00:00]} 44. a6 {[%emt 0:00:00]} g5 {[%emt 0:00:00]} 45. Ne5 {[%emt 0:00:00]} Na7 {[%emt 0:00:00]} 46. hxg5 {[%emt 0:00:00]} h4 {[%emt 0:00:00]} 47. Nf3 {[%emt 0:00:00]} h3 {[%emt 0:00:00]} 48. Kd2 {[%emt 0:00:00]} Kg7 {[%emt 0:00:00]} 49. Ke2 {[%emt 0:00:00]} Kg6 {[%emt 0:00:00]} 50. Kf2 {[%emt 0:00:00]} h2 {[%emt 0:00:00]} 51. Kg2 {[%emt 0:00:00]} Kf5 {[%emt 0:00:00]} 52. Kxh2 {[%emt 0:00:00]} Kg6 {[%emt 0:00:00]} 53. Kg3 {[%emt 0:00:00]} Kf5 {[%emt 0:39:02]} 54. Kh4 {[%emt 0:00:00]} 1-0

[Event "94th FRA-ch Open D 2019"]
[Site "Chartres"]
[Date "2019.08.21"]
[Round "5.4"]
[White "Noyer, Christophe"]
[Black "Lissillour, Baptiste"]
[Result "0-1"]
[ECO "B86"]
[WhiteElo "1526"]
[BlackElo "1469"]
[Annotator "NA"]
[PlyCount "38"]
[EventDate "2019.08.17"]
[EventType "swiss"]
[EventCountry "FRA"]
[SourceTitle "playchess.com"]
[Source "ChessBase"]
[SourceQuality "1"]
[TimeControl "40/5400+30:1800+30"]

1. e4 {[%emt 1:30:30]} c5 {[%emt 1:30:30]} 2. Nf3 {[%emt 0:00:30]} d6 {[%emt 0:00:30]} 3. d4 {[%emt 0:00:30]} cxd4 {[%emt 0:00:30]} 4. Nxd4 {[%emt 0:00:30]} Nf6 {[%emt 0:00:30]} 5. Nc3 {[%emt 0:00:30]} a6 {[%emt 0:00:30]} 6. Bc4 {[%emt 0:00:30]} e6 {[%emt 0:00:30]} 7. Bb3 {[%emt 0:00:30]} Nbd7 {[%emt 0:00:30]} 8. f4 {[%emt 0:00:30]} Nc5 {[%emt 0:00:30]} 9. Qf3 {[%emt 0:00:30]} b5 {[%emt 0:00:30]} 10. f5 {[%emt 0:00:30]} Nxb3 {[%emt 0:00:30]} 11. axb3 {[%emt 0:00:30]} Bb7 {[%emt 0:00:30]} 12. fxe6 {[%emt 0:00:30]} fxe6 {[%emt 0:00:30]} 13. O-O {[%emt 0:00:30]} Qd7 {[%emt 0:00:30]} 14. Bg5 {[%emt 0:00:30]} Be7 {[%emt 0:00:30]} 15. Rae1 {[%emt 0:00:30]} O-O {[%emt 0:00:30]} 16. Qg3 {[%emt 0:00:30]} b4 {[%emt 0:00:30]} 17. Bh6 {[%emt 0:00:30]} Nh5 {[%emt 0:00:30]} 18. Qg4 {[%emt 0:00:30]} bxc3 {[%emt 0:00:30]} 19. Bxg7 {[%emt 0:00:30]} Nxg7 {[%emt 0:00:30]} 0-1

[Event "94th FRA-ch Open D 2019"]
[Site "Chartres"]
[Date "2019.08.21"]
[Round "5.5"]
[White "Thevenon, Thomas"]
[Black "Melier, Ludovic"]
[Result "1-0"]
[ECO "C41"]
[WhiteElo "1513"]
[BlackElo "1425"]
[Annotator "NA"]
[PlyCount "97"]
[EventDate "2019.08.17"]
[EventType "swiss"]
[EventCountry "FRA"]
[SourceTitle "playchess.com"]
[Source "ChessBase"]
[SourceQuality "1"]
[TimeControl "40/5400+30:1800+30"]

1. e4 {[%emt 0:00:00]} e5 {[%emt 0:00:00]} 2. Nf3 {[%emt 0:00:22]} d6 {[%emt 0:00:00]} 3. Bc4 {[%emt 0:03:46]} Be7 {[%emt 0:00:28]} 4. Nc3 {[%emt 0:01:48]} Nf6 {[%emt 0:00:25]} 5. O-O {[%emt 0:02:07]} O-O {[%emt 0:00:13]} 6. h3 {[%emt 0:01:13]} Nc6 {[%emt 0:02:53]} 7. a4 {[%emt 0:02:54]} Bd7 {[%emt 0:03:26]} 8. d3 {[%emt 0:02:40]} Qc8 {[%emt 0:02:30]} 9. Kh2 {[%emt 0:02:07]} Be6 {[%emt 0:04:53]} 10. Bxe6 {[%emt 0:03:10]} Qxe6 {[%emt 0:02:11]} 11. Bg5 {[%emt 0:02:02]} Rfe8 {[%emt 0:04:50]} 12. Bxf6 {[%emt 0:08:04]} Bxf6 {[%emt 0:03:09]} 13. Nd5 {[%emt 0:00:21]} Rac8 {[%emt 0:02:10]} 14. Nd2 {[%emt 0:02:41]} Ne7 {[%emt 0:05:25]} 15. Nxf6+ {[%emt 0:01:11]} Qxf6 {[%emt 0:00:10]} 16. Nc4 {[%emt 0:00:51]} Ng6 {[%emt 0:04:29]} 17. g3 {[%emt 0:02:00]} Qd8 {[%emt 0:04:35]} 18. Ne3 {[%emt 0:01:03]} c6 {[%emt 0:01:03]} 19. Qg4 {[%emt 0:01:51]} Rc7 {[%emt 0:05:28]} 20. Nf5 {[%emt 0:05:50]} f6 {[%emt 0:04:20]} 21. h4 {[%emt 0:01:27]} Qd7 {[%emt 0:03:24]} 22. f4 {[%emt 0:06:30]} Nf8 {[%emt 0:02:38]} 23. Rf2 {[%emt 0:01:18]} Kh8 {[%emt 0:00:31]} 24. Raf1 {[%emt 0:01:03]} g6 {[%emt 0:02:05]} 25. Ne3 {[%emt 0:00:09]} Qxg4 {[%emt 0:00:24]} 26. Nxg4 {[%emt 0:00:05]} Kg7 {[%emt 0:01:13]} 27. fxe5 {[%emt 0:01:20]} fxe5 {[%emt 0:00:36]} 28. Rf6 {[%emt 0:00:20]} h5 {[%emt 0:04:37]} 29. Ne3 {[%emt 0:00:21]} Rd7 {[%emt 0:00:22]} 30. Nc4 {[%emt 0:02:17]} d5 {[%emt 0:03:41]} 31. exd5 {[%emt 0:44:39]} cxd5 {[%emt 0:00:10]} 32. Nxe5 {[%emt 0:00:00]} Rxe5 {[%emt 0:00:07]} 33. Rxf8 {[%emt 0:00:00]} Rc7 {[%emt 0:03:24]} 34. R8f2 {[%emt 0:00:00]} d4 {[%emt 0:01:06]} 35. Kg2 {[%emt 0:00:00]} a6 {[%emt 0:01:21]} 36. b3 {[%emt 0:00:00]} b5 {[%emt 0:02:00]} 37. axb5 {[%emt 0:00:00]} axb5 {[%emt 0:00:16]} 38. Rc1 {[%emt 0:00:00]} b4 {[%emt 0:02:35]} 39. Kf1 {[%emt 0:00:00]} Re3 {[%emt 0:08:29]} 40. Re1 {[%emt 0:00:00]} Rxg3 {[%emt 0:00:36]} 41. Re4 {[%emt 0:00:00]} Rg4 {[%emt 0:31:07]} 42. Rxg4 {[%emt 0:00:00]} hxg4 {[%emt 0:00:09]} 43. Kg2 {[%emt 0:00:00]} Kh6 {[%emt 0:05:21]} 44. Kg3 {[%emt 0:00:00]} Kh5 {[%emt 0:00:55]} 45. Rf4 {[%emt 0:00:06]} Rxc2 {[%emt 0:00:35]} 46. Rxd4 {[%emt 0:00:09]} Rc3 {[%emt 0:01:01]} 47. Rd5+ {[%emt 0:00:13]} Kh6 {[%emt 0:00:55]} 48. Kxg4 {[%emt 0:00:52]} Rxb3 {[%emt 0:00:25]} 49. Rb5 {[%emt 0:37:40]} 1-0

[Event "94th FRA-ch Open D 2019"]
[Site "Chartres"]
[Date "2019.08.21"]
[Round "5.6"]
[White "Dartigues, Antoine"]
[Black "Paralieu, Maxime"]
[Result "0-1"]
[ECO "C54"]
[WhiteElo "1288"]
[BlackElo "1480"]
[Annotator "NA"]
[PlyCount "110"]
[EventDate "2019.08.17"]
[EventType "swiss"]
[EventCountry "FRA"]
[SourceTitle "playchess.com"]
[Source "ChessBase"]
[SourceQuality "1"]
[TimeControl "40/5400+30:1800+30"]

1. e4 {[%emt 0:00:00]} e5 {[%emt 0:00:00]} 2. Nf3 {[%emt 0:00:14]} Nc6 {[%emt 0:00:17]} 3. Bc4 {[%emt 0:00:12]} Nf6 {[%emt 0:00:37]} 4. d3 {[%emt 0:00:15]} Bc5 {[%emt 0:00:54]} 5. c3 {[%emt 0:00:10]} d6 {[%emt 0:01:40]} 6. O-O {[%emt 0:01:58]} h6 {[%emt 0:04:10]} 7. Be3 {[%emt 0:03:22]} Bb6 {[%emt 0:01:53]} 8. Nbd2 {[%emt 0:03:00]} O-O {[%emt 0:01:39]} 9. Re1 {[%emt 0:01:47]} Be6 {[%emt 0:04:21]} 10. Bb3 {[%emt 0:02:48]} Bxe3 {[%emt 0:08:39]} 11. fxe3 {[%emt 0:00:32]} d5 {[%emt 0:02:04]} 12. exd5 {[%emt 0:01:50]} Nxd5 {[%emt 0:07:50]} 13. e4 {[%emt 0:00:40]} Nf4 {[%emt 0:02:16]} 14. Bxe6 {[%emt 0:03:05]} fxe6 {[%emt 0:01:12]} 15. Nc4 {[%emt 0:01:52]} Qxd3 {[%emt 0:04:30]} 16. Qxd3 {[%emt 0:00:26]} Nxd3 {[%emt 0:00:46]} 17. Re3 {[%emt 0:00:24]} Rad8 {[%emt 0:03:31]} 18. Rd1 {[%emt 0:00:26]} Nf4 {[%emt 0:02:54]} 19. Rxd8 {[%emt 0:00:24]} Rxd8 {[%emt 0:00:10]} 20. Nfxe5 {[%emt 0:04:02]} Nxe5 {[%emt 0:00:15]} 21. Nxe5 {[%emt 0:00:04]} Rd1+ {[%emt 0:01:09]} 22. Kf2 {[%emt 0:00:10]} Rd2+ {[%emt 0:00:48]} 23. Kf3 {[%emt 0:00:15]} Nxg2 {[%emt 0:02:36]} 24. Re2 {[%emt 0:02:15]} Rxe2 {[%emt 0:00:52]} 25. Kxe2 {[%emt 0:00:05]} Nf4+ {[%emt 0:00:48]} 26. Kf3 {[%emt 0:00:21]} Nh5 {[%emt 0:01:04]} 27. Nd7 {[%emt 0:04:51]} Nf6 {[%emt 0:00:44]} 28. Nc5 {[%emt 0:00:16]} Kf7 {[%emt 0:05:52]} 29. Nxb7 {[%emt 0:01:15]} Nd7 {[%emt 0:00:53]} 30. Nd8+ {[%emt 0:01:08]} Kf6 {[%emt 0:00:34]} 31. Nc6 {[%emt 0:00:21]} a6 {[%emt 0:01:00]} 32. b3 {[%emt 0:01:56]} Ne5+ {[%emt 0:02:50]} 33. Nxe5 {[%emt 0:00:07]} Kxe5 {[%emt 0:00:13]} 34. Ke3 {[%emt 0:00:33]} g5 {[%emt 0:00:33]} 35. b4 {[%emt 0:00:28]} h5 {[%emt 0:01:00]} 36. a4 {[%emt 0:00:17]} Kd6 {[%emt 0:01:13]} 37. c4 {[%emt 0:00:42]} e5 {[%emt 0:00:59]} 38. a5 {[%emt 0:01:28]} c6 {[%emt 0:00:21]} 39. Kf3 {[%emt 0:01:07]} c5 {[%emt 0:01:27]} 40. b5 {[%emt 0:00:11]} axb5 {[%emt 0:00:07]} 41. a6 {[%emt 0:30:50]} Kc7 {[%emt 0:30:18]} 42. cxb5 {[%emt 0:00:22]} Kb6 {[%emt 0:00:16]} 43. Ke3 {[%emt 0:01:00]} g4 {[%emt 0:00:26]} 44. Kd3 {[%emt 0:00:30]} h4 {[%emt 0:00:19]} 45. Kc4 {[%emt 0:00:04]} g3 {[%emt 0:00:14]} 46. a7 {[%emt 0:00:02]} Kxa7 {[%emt 0:00:17]} 47. hxg3 {[%emt 0:00:05]} hxg3 {[%emt 0:00:13]} 48. Kxc5 {[%emt 0:00:06]} g2 {[%emt 0:00:14]} 49. Kd5 {[%emt 0:00:16]} g1=Q {[%emt 0:00:11]} 50. Kxe5 {[%emt 0:00:03]} Qc5+ {[%emt 0:00:12]} 51. Kf6 {[%emt 0:00:10]} Qxb5 {[%emt 0:00:47]} 52. e5 {[%emt 0:00:04]} Qe8 {[%emt 0:00:08]} 53. e6 {[%emt 0:00:11]} Kb6 {[%emt 0:00:13]} 54. e7 {[%emt 0:00:16]} Kc7 {[%emt 0:00:09]} 55. Ke6 {[%emt 0:00:07]} Kc6 {[%emt 0:38:52]} 0-1

[Event "94th FRA-ch Open D 2019"]
[Site "Chartres"]
[Date "2019.08.22"]
[Round "6.1"]
[White "Minatchy, Tristan"]
[Black "Rolland Piegue, Sacha"]
[Result "1-0"]
[ECO "B23"]
[WhiteElo "1452"]
[BlackElo "1385"]
[Annotator "NA"]
[PlyCount "61"]
[EventDate "2019.08.17"]
[EventType "swiss"]
[EventCountry "FRA"]
[SourceTitle "playchess.com"]
[Source "ChessBase"]
[SourceQuality "1"]
[TimeControl "40/5400+30:1800+30"]

1. e4 {[%emt 0:00:00]} c5 {[%emt 0:00:00]} 2. Nc3 {[%emt 0:00:00]} Nc6 {[%emt 0:00:12]} 3. f4 {[%emt 0:00:00]} e6 {[%emt 0:00:36]} 4. Nf3 {[%emt 0:00:03]} d5 {[%emt 0:00:43]} 5. Bb5 {[%emt 0:00:14]} Nge7 {[%emt 0:00:25]} 6. exd5 {[%emt 0:01:59]} exd5 {[%emt 0:01:17]} 7. Qe2 {[%emt 0:00:04]} Bg4 {[%emt 0:00:35]} 8. Bxc6+ {[%emt 0:02:59]} bxc6 {[%emt 0:00:14]} 9. O-O {[%emt 0:00:45]} g6 {[%emt 0:01:17]} 10. Qe5 {[%emt 0:04:51]} Rg8 {[%emt 0:00:53]} 11. Rb1 {[%emt 0:01:42]} Bg7 {[%emt 0:01:12]} 12. Qe2 {[%emt 0:00:45]} Qc7 {[%emt 0:01:36]} 13. d3 {[%emt 0:07:52]} Rd8 {[%emt 0:02:59]} 14. Na4 {[%emt 0:05:37]} Qa5 {[%emt 0:02:31]} 15. b3 {[%emt 0:03:48]} Rd6 {[%emt 0:02:57]} 16. Ba3 {[%emt 0:05:20]} Re6 {[%emt 0:00:39]} 17. Qf2 {[%emt 0:00:47]} Bxf3 {[%emt 0:01:31]} 18. Qxf3 {[%emt 0:04:31]} Bd4+ {[%emt 0:00:37]} 19. Kh1 {[%emt 0:00:02]} Nf5 {[%emt 0:00:34]} 20. c3 {[%emt 0:07:16]} Bxc3 {[%emt 0:02:46]} 21. Bxc5 {[%emt 0:00:53]} Kd7 {[%emt 0:02:42]} 22. Rbc1 {[%emt 0:13:59]} Bb4 {[%emt 0:05:26]} 23. Bxb4 {[%emt 0:00:46]} Qxb4 {[%emt 0:02:16]} 24. Nc5+ {[%emt 0:04:55]} Kd6 {[%emt 0:00:22]} 25. Nxe6 {[%emt 0:00:57]} fxe6 {[%emt 0:00:07]} 26. g4 {[%emt 0:03:29]} Nd4 {[%emt 0:02:30]} 27. Qe3 {[%emt 0:02:00]} Re8 {[%emt 0:01:16]} 28. f5 {[%emt 0:06:24]} e5 {[%emt 0:01:30]} 29. fxg6 {[%emt 0:01:51]} hxg6 {[%emt 0:00:34]} 30. Qh6 {[%emt 0:03:38]} Re6 {[%emt 0:07:11]} 31. Rf7 {[%emt 0:01:27]} 1-0

[Event "94th FRA-ch Open D 2019"]
[Site "Chartres"]
[Date "2019.08.22"]
[Round "6.2"]
[White "Paralieu, Maxime"]
[Black "Decurninge, Brice"]
[Result "1/2-1/2"]
[ECO "C02"]
[WhiteElo "1480"]
[BlackElo "1462"]
[Annotator "NA"]
[PlyCount "60"]
[EventDate "2019.08.17"]
[EventType "swiss"]
[EventCountry "FRA"]
[SourceTitle "playchess.com"]
[Source "ChessBase"]
[SourceQuality "1"]
[TimeControl "40/5400+30:1800+30"]

1. e4 {[%emt 0:00:00]} e6 {[%emt 0:00:00]} 2. d4 {[%emt 0:00:12]} d5 {[%emt 0:00:00]} 3. e5 {[%emt 0:00:57]} c5 {[%emt 0:00:02]} 4. c3 {[%emt 0:01:04]} Nc6 {[%emt 0:00:23]} 5. Nf3 {[%emt 0:00:37]} Qb6 {[%emt 0:00:13]} 6. a3 {[%emt 0:01:45]} cxd4 {[%emt 0:03:49]} 7. cxd4 {[%emt 0:01:06]} Nge7 {[%emt 0:01:24]} 8. b4 {[%emt 0:08:11]} Nf5 {[%emt 0:06:05]} 9. Bb2 {[%emt 0:02:12]} a6 {[%emt 0:06:34]} 10. Be2 {[%emt 0:03:11]} Be7 {[%emt 0:02:38]} 11. h3 {[%emt 0:02:03]} Bd7 {[%emt 0:04:04]} 12. O-O {[%emt 0:07:08]} O-O {[%emt 0:01:38]} 13. Qd2 {[%emt 0:01:35]} Rac8 {[%emt 0:03:25]} 14. Rd1 {[%emt 0:02:57]} Rc7 {[%emt 0:04:15]} 15. Nc3 {[%emt 0:03:05]} Na7 {[%emt 0:03:09]} 16. Rac1 {[%emt 0:01:32]} Rfc8 {[%emt 0:01:58]} 17. Bd3 {[%emt 0:06:01]} Nh4 {[%emt 0:05:04]} 18. Nxh4 {[%emt 0:05:13]} Bxh4 {[%emt 0:00:07]} 19. Qf4 {[%emt 0:07:43]} Be7 {[%emt 0:02:21]} 20. Qd2 {[%emt 0:02:10]} a5 {[%emt 0:04:52]} 21. bxa5 {[%emt 0:05:12]} Qxa5 {[%emt 0:00:46]} 22. Nb1 {[%emt 0:01:56]} Qxd2 {[%emt 0:02:28]} 23. Nxd2 {[%emt 0:00:58]} Rxc1 {[%emt 0:08:42]} 24. Rxc1 {[%emt 0:00:32]} Rxc1+ {[%emt 0:01:01]} 25. Bxc1 {[%emt 0:00:11]} Nb5 {[%emt 0:00:44]} 26. Bxb5 {[%emt 0:01:25]} Bxb5 {[%emt 0:00:08]} 27. Nb1 {[%emt 0:03:47]} Kf8 {[%emt 0:02:43]} 28. Nc3 {[%emt 0:00:58]} Bc4 {[%emt 0:01:33]} 29. g3 {[%emt 0:03:12]} Ke8 {[%emt 0:04:50]} 30. Kg2 {[%emt 0:03:45]} Kd7 {[%emt 0:03:07]} 1/2-1/2

[Event "94th FRA-ch Open D 2019"]
[Site "Chartres"]
[Date "2019.08.22"]
[Round "6.3"]
[White "Lissillour, Baptiste"]
[Black "Alcindor, Samuel"]
[Result "1-0"]
[ECO "D37"]
[WhiteElo "1469"]
[BlackElo "1580"]
[Annotator "NA"]
[PlyCount "53"]
[EventDate "2019.08.17"]
[EventType "swiss"]
[EventCountry "FRA"]
[SourceTitle "playchess.com"]
[Source "ChessBase"]
[SourceQuality "1"]
[TimeControl "40/5400+30:1800+30"]

1. d4 {[%emt 0:00:00]} d5 {[%emt 0:00:00]} 2. Nf3 {[%emt 0:01:38]} Nf6 {[%emt 0:00:00]} 3. c4 {[%emt 0:00:16]} e6 {[%emt 0:00:05]} 4. Nc3 {[%emt 0:00:21]} Nbd7 {[%emt 0:01:16]} 5. Bf4 {[%emt 0:01:10]} c6 {[%emt 0:09:10]} 6. e3 {[%emt 0:02:25]} Be7 {[%emt 0:02:01]} 7. Rc1 {[%emt 0:01:13]} O-O {[%emt 0:00:10]} 8. Bd3 {[%emt 0:02:55]} dxc4 {[%emt 0:07:51]} 9. Bxc4 {[%emt 0:02:37]} b6 {[%emt 0:00:39]} 10. O-O {[%emt 0:03:40]} Bb7 {[%emt 0:00:14]} 11. e4 {[%emt 0:03:50]} Rc8 {[%emt 0:03:53]} 12. Qe2 {[%emt 0:02:27]} c5 {[%emt 0:03:23]} 13. d5 {[%emt 0:01:52]} exd5 {[%emt 0:00:42]} 14. exd5 {[%emt 0:00:50]} Re8 {[%emt 0:00:27]} 15. d6 {[%emt 0:04:51]} Bf8 {[%emt 0:31:59]} 16. Bxf7+ {[%emt 0:25:15]} Kxf7 {[%emt 0:00:34]} 17. Ng5+ {[%emt 0:00:37]} Kg6 {[%emt 0:01:44]} 18. Qd3+ {[%emt 0:02:47]} Ne4 {[%emt 0:07:26]} 19. Ncxe4 {[%emt 0:00:44]} Bxe4 {[%emt 0:00:15]} 20. Nxe4 {[%emt 0:00:15]} Rxe4 {[%emt 0:00:22]} 21. Qxe4+ {[%emt 0:00:10]} Kf7 {[%emt 0:00:25]} 22. Qd5+ {[%emt 0:00:42]} Kg6 {[%emt 0:00:28]} 23. Qe6+ {[%emt 0:02:07]} Nf6 {[%emt 0:00:07]} 24. Be5 {[%emt 0:00:35]} h6 {[%emt 0:06:11]} 25. Bxf6 {[%emt 0:00:13]} gxf6 {[%emt 0:00:07]} 26. d7 {[%emt 0:00:13]} Rc7 {[%emt 0:01:00]} 27. Qe5 {[%emt 0:39:47]} 1-0

[Event "94th FRA-ch Open D 2019"]
[Site "Chartres"]
[Date "2019.08.22"]
[Round "6.4"]
[White "Catherinot, Laetitia"]
[Black "Gatineau, Milann"]
[Result "0-1"]
[ECO "E16"]
[WhiteElo "1587"]
[BlackElo "1517"]
[Annotator "NA"]
[PlyCount "58"]
[EventDate "2019.08.17"]
[EventType "swiss"]
[EventCountry "FRA"]
[SourceTitle "playchess.com"]
[Source "ChessBase"]
[SourceQuality "1"]
[TimeControl "40/5400+30:1800+30"]

1. c4 {[%emt 1:30:30]} Nf6 {[%emt 1:30:30]} 2. g3 {[%emt 0:00:30]} e6 {[%emt 0:00:30]} 3. Bg2 {[%emt 0:00:30]} d5 {[%emt 0:00:30]} 4. Nf3 {[%emt 0:00:30]} Bd6 {[%emt 0:00:30]} 5. O-O {[%emt 0:00:30]} O-O {[%emt 0:00:30]} 6. d4 {[%emt 0:00:30]} b6 {[%emt 0:00:30]} 7. Qc2 {[%emt 0:00:30]} Nbd7 {[%emt 0:00:30]} 8. Nbd2 {[%emt 0:00:30]} Bb7 {[%emt 0:00:30]} 9. Re1 {[%emt 0:00:30]} c5 {[%emt 0:00:30]} 10. e4 {[%emt 0:00:30]} dxe4 {[%emt 0:00:30]} 11. Ng5 {[%emt 0:00:30]} cxd4 {[%emt 0:00:30]} 12. Ndxe4 {[%emt 0:00:30]} Nxe4 {[%emt 0:00:30]} 13. Bxe4 {[%emt 0:00:30]} Bxe4 {[%emt 0:00:30]} 14. Rxe4 {[%emt 0:00:30]} d3 {[%emt 0:00:30]} 15. Qd1 {[%emt 0:00:30]} Nc5 {[%emt 0:00:30]} 16. Rh4 {[%emt 0:00:30]} h6 {[%emt 0:00:30]} 17. Qh5 {[%emt 0:00:30]} Be7 {[%emt 0:00:30]} 18. Rg4 {[%emt 0:00:30]} d2 {[%emt 0:00:30]} 19. Bxd2 {[%emt 0:00:30]} Qxd2 {[%emt 0:00:30]} 20. Nf3 {[%emt 0:00:30]} Qxb2 {[%emt 0:00:30]} 21. Rf1 {[%emt 0:00:30]} Qf6 {[%emt 0:00:30]} 22. Re1 {[%emt 0:00:30]} Qf5 {[%emt 0:00:30]} 23. Re5 {[%emt 0:00:30]} Qxh5 {[%emt 0:00:30]} 24. Rxh5 {[%emt 0:00:30]} Kh7 {[%emt 0:00:30]} 25. Ng5+ {[%emt 0:00:30]} Bxg5 {[%emt 0:00:30]} 26. Rgxg5 {[%emt 0:00:30]} f5 {[%emt 0:00:30]} 27. g4 {[%emt 0:00:30]} Ne4 {[%emt 0:00:30]} 28. Rxg7+ {[%emt 0:00:30]} Kxg7 {[%emt 0:00:30]} 29. gxf5 {[%emt 0:00:30]} Rxf5 {[%emt 0:00:30]} 0-1

[Event "94th FRA-ch Open D 2019"]
[Site "Chartres"]
[Date "2019.08.22"]
[Round "6.5"]
[White "Lombardo, Patrick"]
[Black "Thevenon, Thomas"]
[Result "1-0"]
[ECO "B07"]
[WhiteElo "1566"]
[BlackElo "1513"]
[Annotator "NA"]
[PlyCount "77"]
[EventDate "2019.08.17"]
[EventType "swiss"]
[EventCountry "FRA"]
[SourceTitle "playchess.com"]
[Source "ChessBase"]
[SourceQuality "1"]
[TimeControl "40/5400+30:1800+30"]

1. e4 {[%emt 0:00:00]} d6 {[%emt 0:00:03]} 2. d4 {[%emt 0:00:31]} Nf6 {[%emt 0:00:44]} 3. Nc3 {[%emt 0:04:09]} Nbd7 {[%emt 0:00:30]} 4. Be3 {[%emt 0:00:30]} e5 {[%emt 0:01:37]} 5. d5 {[%emt 0:05:47]} Be7 {[%emt 0:01:30]} 6. Be2 {[%emt 0:01:37]} O-O {[%emt 0:00:55]} 7. g4 {[%emt 0:05:52]} a6 {[%emt 0:04:15]} 8. Qd2 {[%emt 0:01:32]} b5 {[%emt 0:00:29]} 9. g5 {[%emt 0:00:09]} Ne8 {[%emt 0:01:14]} 10. h4 {[%emt 0:00:58]} Nc5 {[%emt 0:05:15]} 11. b4 {[%emt 0:02:41]} Nb7 {[%emt 0:02:23]} 12. Nh3 {[%emt 0:05:23]} f5 {[%emt 0:02:40]} 13. gxf6 {[%emt 0:02:19]} Bxf6 {[%emt 0:00:45]} 14. Bg5 {[%emt 0:02:00]} Qe7 {[%emt 0:04:36]} 15. O-O-O {[%emt 0:00:38]} Bxg5 {[%emt 0:02:33]} 16. Nxg5 {[%emt 0:00:41]} Rxf2 {[%emt 0:00:49]} 17. Rdg1 {[%emt 0:01:14]} a5 {[%emt 0:03:14]} 18. Qe3 {[%emt 1:02:59]} Rf4 {[%emt 1:05:28]} 19. Ne6 {[%emt 0:00:30]} Bxe6 {[%emt 0:00:30]} 20. dxe6 {[%emt 0:00:30]} axb4 {[%emt 0:00:30]} 21. Nd5 {[%emt 0:00:30]} Qxe6 {[%emt 0:00:30]} 22. Bxb5 {[%emt 0:00:30]} Rf8 {[%emt 0:00:30]} 23. Bc4 {[%emt 0:00:30]} Kh8 {[%emt 0:00:30]} 24. Nb6 {[%emt 0:00:30]} Qe7 {[%emt 0:00:30]} 25. Nxa8 {[%emt 0:00:30]} Nc5 {[%emt 0:00:30]} 26. Rf1 {[%emt 0:00:30]} Nf6 {[%emt 0:00:30]} 27. Bd5 {[%emt 0:00:30]} Rb8 {[%emt 0:00:30]} 28. Rhg1 {[%emt 0:00:30]} Nxd5 {[%emt 0:00:30]} 29. exd5 {[%emt 0:00:30]} Rxa8 {[%emt 0:00:30]} 30. Qf2 {[%emt 0:00:30]} Kg8 {[%emt 0:00:30]} 31. Qf5 {[%emt 0:00:30]} Qe8 {[%emt 0:00:30]} 32. Rxg7+ {[%emt 0:00:30]} Kxg7 {[%emt 0:00:30]} 33. Qf6+ {[%emt 0:00:30]} Kg8 {[%emt 0:00:30]} 34. Rg1+ {[%emt 0:00:30]} Qg6 {[%emt 0:00:30]} 35. Rxg6+ {[%emt 0:00:30]} hxg6 {[%emt 0:00:30]} 36. Qxg6+ {[%emt 0:00:30]} Kf8 {[%emt 0:00:30]} 37. Kb1 {[%emt 0:00:30]} Nd7 {[%emt 0:00:30]} 38. h5 {[%emt 0:00:30]} Ke7 {[%emt 0:00:30]} 39. Qe6+ {[%emt 0:00:30] Ke8 Qg6+} 1-0